[Event "December 12 Late 2023"]
[Site "https://www.chess.com"]
[Date "2023.12.12"]
[Round "1"]
[White "Mendes Aaron Reeve"]
[Black "Silvestre, Christian"]
[Result "1-0"]
[Board "99"]
[TimeControl "180+1"]
[WhiteFideId "25954938"]
[BlackFideId "30956269"]
[WhiteElo "2653"]
[BlackElo "2324"]
[WhiteTeam "CAN"]
[BlackTeam "USA"]
[WhiteClock "0:00:33"]
[BlackClock "0:00:03"]

1. e4 {[%clk 0:02:57]}  c5 {[%clk 0:02:59]} 2. Nf3 {[%clk 0:02:52]}  d6 {[%clk 0:02:58]} 3. d4 {[%clk 0:02:51]}  cxd4 {[%clk 0:02:59]} 4. Nxd4 {[%clk 0:02:51]}  Nf6 {[%clk 0:03:00]} 5. Nc3 {[%clk 0:02:51]}  g6 {[%clk 0:03:00]} 6. f3 {[%clk 0:02:45]}  a6 {[%clk 0:03:00]} 7. Be3 {[%clk 0:02:45]}  b5 {[%clk 0:03:00]} 8. Qd2 {[%clk 0:02:45]}  Bb7 {[%clk 0:02:59]} 9. a3 {[%clk 0:02:45]}  Nbd7 {[%clk 0:02:59]} 10. O-O-O {[%clk 0:02:45]}  h5 {[%clk 0:02:59]} 11. Be2 {[%clk 0:02:45]}  Bg7 {[%clk 0:02:59]} 12. h4 {[%clk 0:02:44]}  Rc8 {[%clk 0:02:58]} 13. Rhg1 {[%clk 0:02:39]}  Ne5 {[%clk 0:02:57]} 14. Bg5 {[%clk 0:02:34]}  Nc4 {[%clk 0:02:56]} 15. Qe1 {[%clk 0:02:32]}  Nh7 {[%clk 0:02:42]} 16. Bxc4 {[%clk 0:02:19]}  Rxc4 {[%clk 0:02:36]} 17. Be3 {[%clk 0:02:17]}  Qc7 {[%clk 0:02:29]} 18. g4 {[%clk 0:02:09]}  Nf6 {[%clk 0:02:26]} 19. gxh5 {[%clk 0:02:02]}  Rxh5 {[%clk 0:02:24]} 20. Rxg6 {[%clk 0:02:01]}  Bf8 {[%clk 0:01:47]} 21. Rg5 {[%clk 0:01:55]}  Rh8 {[%clk 0:01:27]} 22. Rf5 {[%clk 0:01:51]}  Bc8 {[%clk 0:01:22]} 23. Rxf6 {[%clk 0:01:48]}  exf6 {[%clk 0:01:21]} 24. Nd5 {[%clk 0:01:48]}  Qd8 {[%clk 0:01:20]} 25. Nf5 {[%clk 0:01:43]}  Be6 {[%clk 0:01:16]} 26. Bd4 {[%clk 0:01:40]}  Bxd5 {[%clk 0:01:08]} 27. exd5+ {[%clk 0:01:37]}  Kd7 {[%clk 0:01:09]} 28. b3 {[%clk 0:01:34]}  Rc8 {[%clk 0:01:01]} 29. Kb2 {[%clk 0:01:32]}  Rh5 {[%clk 0:00:55]} 30. Qe4 {[%clk 0:01:28]}  Qe8 {[%clk 0:00:49]} 31. Qg4 {[%clk 0:01:24]}  Rxf5 {[%clk 0:00:36]} 32. Qxf5+ {[%clk 0:01:23]}  Kc7 {[%clk 0:00:37]} 33. Bxf6 {[%clk 0:01:22]}  Kb7 {[%clk 0:00:36]} 34. Qe4 {[%clk 0:01:11]}  Qd7 {[%clk 0:00:35]} 35. h5 {[%clk 0:01:07]}  Qh3 {[%clk 0:00:26]} 36. Qg4 {[%clk 0:00:53]}  Qh2 {[%clk 0:00:24]} 37. Bc3 {[%clk 0:00:52]}  Be7 {[%clk 0:00:20]} 38. Qf5 {[%clk 0:00:47]}  Rc7 {[%clk 0:00:19]} 39. Qxf7 {[%clk 0:00:41]}  Bg5 {[%clk 0:00:11]} 40. Qf5 {[%clk 0:00:39]}  Bh6 {[%clk 0:00:11]} 41. Qg6 {[%clk 0:00:35]}  Bg7 {[%clk 0:00:03]} 42. Bxg7 {[%clk 0:00:33]} 1-0

[Event "December 12 Late 2023"]
[Site "https://www.chess.com"]
[Date "2023.12.12"]
[Round "1"]
[White "Dubreuil, Julien"]
[Black "Solon, Nathan"]
[Result "0-1"]
[Board "100"]
[TimeControl "180+1"]
[WhiteFideId "621285"]
[BlackFideId "2017229"]
[WhiteElo "2322"]
[BlackElo "2651"]
[WhiteTeam "FRA"]
[BlackTeam "USA"]
[WhiteClock "0:00:06"]
[BlackClock "0:01:57"]

1. e4 {[%clk 0:03:00]}  c5 {[%clk 0:02:57]} 2. Nf3 {[%clk 0:03:00]}  Nf6 {[%clk 0:02:57]} 3. e5 {[%clk 0:02:54]}  Nd5 {[%clk 0:02:57]} 4. c4 {[%clk 0:02:54]}  Nc7 {[%clk 0:02:57]} 5. Nc3 {[%clk 0:02:54]}  Nc6 {[%clk 0:02:57]} 6. d4 {[%clk 0:02:53]}  cxd4 {[%clk 0:02:58]} 7. Nxd4 {[%clk 0:02:53]}  Nxe5 {[%clk 0:02:58]} 8. Qe2 {[%clk 0:02:50]}  Nc6 {[%clk 0:02:56]} 9. Nxc6 {[%clk 0:02:48]}  dxc6 {[%clk 0:02:45]} 10. Be3 {[%clk 0:02:41]}  Ne6 {[%clk 0:02:41]} 11. Rd1 {[%clk 0:02:39]}  Qa5 {[%clk 0:02:41]} 12. g3 {[%clk 0:02:37]}  g6 {[%clk 0:02:41]} 13. Bg2 {[%clk 0:02:36]}  Bg7 {[%clk 0:02:41]} 14. O-O {[%clk 0:02:36]}  O-O {[%clk 0:02:41]} 15. Qc2 {[%clk 0:02:17]}  Nc5 {[%clk 0:02:28]} 16. Bd4 {[%clk 0:01:17]}  Bxd4 {[%clk 0:02:20]} 17. Rxd4 {[%clk 0:01:16]}  Bf5 {[%clk 0:02:21]} 18. Qd2 {[%clk 0:01:10]}  Rad8 {[%clk 0:02:15]} 19. Rd1 {[%clk 0:00:48]}  Ne6 {[%clk 0:02:11]} 20. Nd5 {[%clk 0:00:33]}  Qc5 {[%clk 0:01:59]} 21. b4 {[%clk 0:00:20]}  Qxd4 {[%clk 0:01:59]} 22. Nxe7+ {[%clk 0:00:06]}  Kh8 {[%clk 0:01:57]} 0-1

[Event "December 12 Late 2023"]
[Site "https://www.chess.com"]
[Date "2023.12.12"]
[Round "1"]
[White "Narva, Mai"]
[Black "Todev, Simeon"]
[Result "1/2-1/2"]
[Board "101"]
[TimeControl "180+1"]
[WhiteFideId "4500512"]
[BlackFideId "2925133"]
[WhiteElo "2648"]
[BlackElo "2320"]
[WhiteTeam "EST"]
[BlackTeam "BUL"]
[WhiteClock "0:00:11"]
[BlackClock "0:00:03"]

1. e4 {[%clk 0:03:00]}  c5 {[%clk 0:02:56]} 2. Nf3 {[%clk 0:03:00]}  Nc6 {[%clk 0:02:48]} 3. d4 {[%clk 0:03:00]}  cxd4 {[%clk 0:02:46]} 4. Nxd4 {[%clk 0:03:00]}  e5 {[%clk 0:02:44]} 5. Nb5 {[%clk 0:03:00]}  a6 {[%clk 0:02:44]} 6. N5c3 {[%clk 0:02:51]}  b5 {[%clk 0:02:39]} 7. Nd5 {[%clk 0:02:48]}  Nf6 {[%clk 0:02:38]} 8. Bd3 {[%clk 0:02:48]}  Bb7 {[%clk 0:02:38]} 9. Bg5 {[%clk 0:02:46]}  Be7 {[%clk 0:02:38]} 10. Bxf6 {[%clk 0:02:45]}  Bxf6 {[%clk 0:02:37]} 11. O-O {[%clk 0:02:44]}  Bg5 {[%clk 0:02:37]} 12. c4 {[%clk 0:02:43]}  b4 {[%clk 0:02:35]} 13. Nd2 {[%clk 0:02:40]}  O-O {[%clk 0:02:32]} 14. c5 {[%clk 0:02:37]}  a5 {[%clk 0:02:25]} 15. Nc4 {[%clk 0:02:35]}  Be7 {[%clk 0:02:26]} 16. Ncb6 {[%clk 0:02:30]}  Rb8 {[%clk 0:02:25]} 17. Rc1 {[%clk 0:02:30]}  Nd4 {[%clk 0:02:25]} 18. Qg4 {[%clk 0:02:03]}  Bc6 {[%clk 0:02:05]} 19. Rfd1 {[%clk 0:01:47]}  Bg5 {[%clk 0:01:49]} 20. Rb1 {[%clk 0:01:27]}  Ne6 {[%clk 0:01:43]} 21. Nc4 {[%clk 0:01:03]}  f5 {[%clk 0:01:20]} 22. exf5 {[%clk 0:00:54]}  Nxc5 {[%clk 0:01:20]} 23. Nxe5 {[%clk 0:00:34]}  Bxd5 {[%clk 0:01:16]} 24. Qd4 {[%clk 0:00:34]}  Bxa2 {[%clk 0:01:02]} 25. Bc4+ {[%clk 0:00:32]}  Bxc4 {[%clk 0:00:49]} 26. Qxc4+ {[%clk 0:00:32]}  Kh8 {[%clk 0:00:50]} 27. Qxc5 {[%clk 0:00:25]}  Rxf5 {[%clk 0:00:49]} 28. Qd6 {[%clk 0:00:20]}  Bf4 {[%clk 0:00:23]} 29. Qxd7 {[%clk 0:00:16]}  Bxh2+ {[%clk 0:00:17]} 30. Kh1 {[%clk 0:00:13]}  Qh4 {[%clk 0:00:12]} 31. Qxf5 {[%clk 0:00:12]}  Bxe5+ {[%clk 0:00:08]} 32. Qh3 {[%clk 0:00:12]}  Qxf2 {[%clk 0:00:08]} 33. Rd5 {[%clk 0:00:10]}  Bxb2 {[%clk 0:00:05]} 34. Rh5 {[%clk 0:00:08]}  Qc2 {[%clk 0:00:04]} 35. Rf1 {[%clk 0:00:04]}  Bf6 {[%clk 0:00:04]} 36. Rxa5 {[%clk 0:00:02]}  b3 {[%clk 0:00:04]} 37. Qf3 {[%clk 0:00:01]}  b2 {[%clk 0:00:03]} 38. Ra8 {[%clk 0:00:02]}  Qc8 {[%clk 0:00:02]} 39. Rxb8 {[%clk 0:00:02]}  Qxb8 {[%clk 0:00:03]} 40. Rb1 {[%clk 0:00:02]}  h6 {[%clk 0:00:04]} 41. Qe2 {[%clk 0:00:02]}  Qc8 {[%clk 0:00:04]} 42. Qe4 {[%clk 0:00:02]}  Qc1+ {[%clk 0:00:04]} 43. Kh2 {[%clk 0:00:03]}  Be5+ {[%clk 0:00:04]} 44. Kh3 {[%clk 0:00:03]}  Qc3+ {[%clk 0:00:03]} 45. Qf3 {[%clk 0:00:03]}  Qc8+ {[%clk 0:00:03]} 46. Qg4 {[%clk 0:00:03]}  Qc1 {[%clk 0:00:03]} 47. Qf5 {[%clk 0:00:03]}  Qc3+ {[%clk 0:00:02]} 48. Qf3 {[%clk 0:00:04]}  Qd4 {[%clk 0:00:03]} 49. Qf8+ {[%clk 0:00:04]}  Kh7 {[%clk 0:00:03]} 50. Qf5+ {[%clk 0:00:04]}  Kg8 {[%clk 0:00:03]} 51. Qe6+ {[%clk 0:00:05]}  Kh7 {[%clk 0:00:04]} 52. Qf5+ {[%clk 0:00:05]}  g6 {[%clk 0:00:04]} 53. Qf7+ {[%clk 0:00:05]}  Bg7 {[%clk 0:00:05]} 54. Qf3 {[%clk 0:00:05]}  h5 {[%clk 0:00:03]} 55. Kh2 {[%clk 0:00:04]}  Be5+ {[%clk 0:00:03]} 56. Kh3 {[%clk 0:00:05]}  Qc3 {[%clk 0:00:03]} 57. Qxc3 {[%clk 0:00:05]}  Bxc3 {[%clk 0:00:04]} 58. Kg3 {[%clk 0:00:05]}  Kh6 {[%clk 0:00:04]} 59. Kf3 {[%clk 0:00:06]}  Kg5 {[%clk 0:00:05]} 60. Ke2 {[%clk 0:00:07]}  Kg4 {[%clk 0:00:06]} 61. Kd3 {[%clk 0:00:07]}  Bf6 {[%clk 0:00:06]} 62. Kc2 {[%clk 0:00:07]}  Kg3 {[%clk 0:00:07]} 63. Rf1 {[%clk 0:00:08]}  Be5 {[%clk 0:00:06]} 64. Re1 {[%clk 0:00:08]}  Bd4 {[%clk 0:00:05]} 65. Re4 {[%clk 0:00:08]}  Bh8 {[%clk 0:00:02]} 66. Re6 {[%clk 0:00:06]}  g5 {[%clk 0:00:03]} 67. Rh6 {[%clk 0:00:07]}  Bd4 {[%clk 0:00:02]} 68. Rxh5 {[%clk 0:00:07]}  g4 {[%clk 0:00:02]} 69. Rd5 {[%clk 0:00:07]}  Bf2 {[%clk 0:00:02]} 70. Rg5 {[%clk 0:00:06]}  Kxg2 {[%clk 0:00:02]} 71. Rxg4+ {[%clk 0:00:07]}  Kf3 {[%clk 0:00:03]} 72. Rb4 {[%clk 0:00:07]}  Ke2 {[%clk 0:00:03]} 73. Kxb2 {[%clk 0:00:07]}  Kf3 {[%clk 0:00:04]} 74. Kb3 {[%clk 0:00:08]}  Be3 {[%clk 0:00:05]} 75. Rc4 {[%clk 0:00:09]}  Ke2 {[%clk 0:00:05]} 76. Kc3 {[%clk 0:00:09]}  Bd2+ {[%clk 0:00:06]} 77. Kc2 {[%clk 0:00:09]}  Be3 {[%clk 0:00:07]} 78. Re4 {[%clk 0:00:10]}  Kf3 {[%clk 0:00:07]} 79. Kd3 {[%clk 0:00:10]}  Bg5 {[%clk 0:00:07]} 80. Re8 {[%clk 0:00:11]}  Kf4 {[%clk 0:00:06]} 81. Kd4 {[%clk 0:00:11]}  Bf6+ {[%clk 0:00:06]} 82. Kd5 {[%clk 0:00:12]}  Bc3 {[%clk 0:00:07]} 83. Rf8+ {[%clk 0:00:12]}  Ke3 {[%clk 0:00:08]} 84. Kc4 {[%clk 0:00:13]}  Bg7 {[%clk 0:00:06]} 85. Rf7 {[%clk 0:00:13]}  Bh8 {[%clk 0:00:04]} 86. Rd7 {[%clk 0:00:12]}  Ke4 {[%clk 0:00:04]} 87. Re7+ {[%clk 0:00:12]}  Kf5 {[%clk 0:00:03]} 88. Kd5 {[%clk 0:00:13]}  Bf6 {[%clk 0:00:04]} 89. Re1 {[%clk 0:00:13]}  Bh4 {[%clk 0:00:03]} 90. Rf1+ {[%clk 0:00:13]}  Kg4 {[%clk 0:00:04]} 91. Ke4 {[%clk 0:00:14]}  Bg5 {[%clk 0:00:02]} 92. Rg1+ {[%clk 0:00:14]}  Kh4 {[%clk 0:00:02]} 93. Kf5 {[%clk 0:00:14]}  Be3 {[%clk 0:00:02]} 94. Re1 {[%clk 0:00:14]}  Bf2 {[%clk 0:00:03]} 95. Rf1 {[%clk 0:00:12]}  Kg3 {[%clk 0:00:03]} 96. Ke4 {[%clk 0:00:12]}  Kg2 {[%clk 0:00:03]} 97. Ra1 {[%clk 0:00:12]}  Kg3 {[%clk 0:00:04]} 98. Ra3+ {[%clk 0:00:12]}  Kg2 {[%clk 0:00:05]} 99. Rf3 {[%clk 0:00:12]}  Bg3 {[%clk 0:00:05]} 100. Ke3 {[%clk 0:00:13]}  Bh4 {[%clk 0:00:05]} 101. Ke2 {[%clk 0:00:13]}  Bg5 {[%clk 0:00:05]} 102. Rf8 {[%clk 0:00:13]}  Kg3 {[%clk 0:00:03]} 103. Rf5 {[%clk 0:00:12]}  Kg4 {[%clk 0:00:04]} 104. Rf8 {[%clk 0:00:12]}  Bf4 {[%clk 0:00:04]} 105. Kd3 {[%clk 0:00:11]}  Bd6 {[%clk 0:00:03]} 106. Ke4 {[%clk 0:00:11]}  Bxf8 {[%clk 0:00:03]} 1/2-1/2

[Event "December 12 Late 2023"]
[Site "https://www.chess.com"]
[Date "2023.12.12"]
[Round "1"]
[White "Omelja, Artem"]
[Black "Copeland, Samuel"]
[Result "1/2-1/2"]
[Board "103"]
[TimeControl "180+1"]
[WhiteFideId "14119846"]
[BlackFideId "2007347"]
[WhiteElo "2639"]
[BlackElo "2314"]
[WhiteTeam "UKR"]
[BlackTeam "USA"]
[WhiteClock "0:00:47"]
[BlackClock "0:00:09"]

1. e4 {[%clk 0:02:58]}  c6 {[%clk 0:02:58]} 2. d4 {[%clk 0:02:53]}  d5 {[%clk 0:02:58]} 3. exd5 {[%clk 0:02:54]}  cxd5 {[%clk 0:02:58]} 4. Bd3 {[%clk 0:02:55]}  Nc6 {[%clk 0:02:57]} 5. c3 {[%clk 0:02:52]}  Qc7 {[%clk 0:02:57]} 6. Na3 {[%clk 0:02:51]}  a6 {[%clk 0:02:56]} 7. Nc2 {[%clk 0:02:51]}  Nh6 {[%clk 0:02:52]} 8. h3 {[%clk 0:02:43]}  Bf5 {[%clk 0:02:46]} 9. Nf3 {[%clk 0:02:35]}  Bxd3 {[%clk 0:02:45]} 10. Qxd3 {[%clk 0:02:36]}  e6 {[%clk 0:02:39]} 11. O-O {[%clk 0:02:34]}  Nf5 {[%clk 0:02:38]} 12. Ne3 {[%clk 0:02:34]}  Nxe3 {[%clk 0:02:35]} 13. Bxe3 {[%clk 0:02:35]}  Bd6 {[%clk 0:02:35]} 14. a4 {[%clk 0:02:24]}  h6 {[%clk 0:02:32]} 15. b3 {[%clk 0:02:17]}  O-O {[%clk 0:02:31]} 16. c4 {[%clk 0:02:17]}  dxc4 {[%clk 0:02:26]} 17. bxc4 {[%clk 0:02:18]}  Rfd8 {[%clk 0:02:18]} 18. Qe4 {[%clk 0:02:12]}  Na5 {[%clk 0:02:12]} 19. c5 {[%clk 0:02:11]}  Be7 {[%clk 0:02:01]} 20. Rab1 {[%clk 0:02:11]}  Bf6 {[%clk 0:01:54]} 21. Rfd1 {[%clk 0:02:09]}  Rd5 {[%clk 0:01:50]} 22. Bf4 {[%clk 0:02:08]}  Qc6 {[%clk 0:01:47]} 23. Be5 {[%clk 0:02:08]}  Bxe5 {[%clk 0:01:44]} 24. Nxe5 {[%clk 0:02:09]}  Qxa4 {[%clk 0:01:41]} 25. Ra1 {[%clk 0:02:09]}  Qb4 {[%clk 0:01:30]} 26. Rdb1 {[%clk 0:02:09]}  Qc3 {[%clk 0:01:24]} 27. Qf3 {[%clk 0:02:02]}  Qxf3 {[%clk 0:01:11]} 28. Nxf3 {[%clk 0:02:03]}  Nc6 {[%clk 0:01:01]} 29. Rxb7 {[%clk 0:01:59]}  Nxd4 {[%clk 0:01:01]} 30. Nxd4 {[%clk 0:01:59]}  Rxd4 {[%clk 0:01:01]} 31. Rc1 {[%clk 0:02:00]}  Rc8 {[%clk 0:01:00]} 32. c6 {[%clk 0:02:00]}  Kf8 {[%clk 0:00:41]} 33. Ra7 {[%clk 0:01:55]}  Rd6 {[%clk 0:00:33]} 34. Rxa6 {[%clk 0:01:51]}  Ke7 {[%clk 0:00:33]} 35. Ra7+ {[%clk 0:01:50]}  Kf6 {[%clk 0:00:33]} 36. Rc3 {[%clk 0:01:47]}  Rd5 {[%clk 0:00:25]} 37. c7 {[%clk 0:01:46]}  e5 {[%clk 0:00:23]} 38. Kh2 {[%clk 0:01:33]}  Ke6 {[%clk 0:00:22]} 39. Ra6+ {[%clk 0:01:30]}  Rd6 {[%clk 0:00:22]} 40. Ra5 {[%clk 0:01:29]}  Rd7 {[%clk 0:00:21]} 41. Rc6+ {[%clk 0:01:28]}  Rd6 {[%clk 0:00:20]} 42. Rcc5 {[%clk 0:01:28]}  f6 {[%clk 0:00:21]} 43. Kg3 {[%clk 0:01:28]}  Rd7 {[%clk 0:00:21]} 44. Rc6+ {[%clk 0:01:27]}  Rd6 {[%clk 0:00:21]} 45. Rc1 {[%clk 0:01:26]}  Rd7 {[%clk 0:00:20]} 46. Rac5 {[%clk 0:01:26]}  Kd6 {[%clk 0:00:19]} 47. Rc6+ {[%clk 0:01:27]}  Ke7 {[%clk 0:00:19]} 48. f3 {[%clk 0:01:27]}  g6 {[%clk 0:00:18]} 49. h4 {[%clk 0:01:26]}  Rd6 {[%clk 0:00:18]} 50. R6c3 {[%clk 0:01:25]}  h5 {[%clk 0:00:17]} 51. f4 {[%clk 0:01:24]}  e4 {[%clk 0:00:16]} 52. f5 {[%clk 0:01:24]}  gxf5 {[%clk 0:00:16]} 53. Kf4 {[%clk 0:01:25]}  Rd2 {[%clk 0:00:15]} 54. Kxf5 {[%clk 0:01:23]}  Rxg2 {[%clk 0:00:15]} 55. Rc4 {[%clk 0:01:21]}  Rg4 {[%clk 0:00:14]} 56. Rxe4+ {[%clk 0:01:20]}  Rxe4 {[%clk 0:00:14]} 57. Kxe4 {[%clk 0:01:21]}  Kd6 {[%clk 0:00:14]} 58. Kf5 {[%clk 0:01:22]}  Rxc7 {[%clk 0:00:14]} 59. Rh1 {[%clk 0:01:02]}  Rc5+ {[%clk 0:00:13]} 60. Kxf6 {[%clk 0:01:02]}  Kd7 {[%clk 0:00:12]} 61. Kg6 {[%clk 0:01:02]}  Ke7 {[%clk 0:00:12]} 62. Kg7 {[%clk 0:01:03]}  Rc4 {[%clk 0:00:11]} 63. Re1+ {[%clk 0:00:58]}  Kd6 {[%clk 0:00:09]} 64. Rd1+ {[%clk 0:00:58]}  Ke5 {[%clk 0:00:10]} 65. Rh1 {[%clk 0:00:59]}  Kf5 {[%clk 0:00:09]} 66. Kh6 {[%clk 0:00:59]}  Kg4 {[%clk 0:00:08]} 67. Kg7 {[%clk 0:00:51]}  Rc6 {[%clk 0:00:08]} 68. Kf7 {[%clk 0:00:52]}  Ra6 {[%clk 0:00:07]} 69. Rh2 {[%clk 0:00:50]}  Rb6 {[%clk 0:00:07]} 70. Rh1 {[%clk 0:00:50]}  Ra6 {[%clk 0:00:07]} 71. Kg7 {[%clk 0:00:45]}  Rb6 {[%clk 0:00:08]} 72. Kh7 {[%clk 0:00:46]}  Ra6 {[%clk 0:00:08]} 73. Kg7 {[%clk 0:00:46]}  Rb6 {[%clk 0:00:09]} 74. Kh7 {[%clk 0:00:47]}  Ra6 {[%clk 0:00:09]} 75. Kg7 {[%clk 0:00:47]} 1/2-1/2

[Event "December 12 Late 2023"]
[Site "https://www.chess.com"]
[Date "2023.12.12"]
[Round "1"]
[White "Rose, Felix"]
[Black "Riff, Vincent"]
[Result "1-0"]
[Board "104"]
[TimeControl "180+1"]
[WhiteFideId "5105722"]
[BlackFideId "617776"]
[WhiteElo "2311"]
[BlackElo "2636"]
[WhiteTeam "MEX"]
[BlackTeam "FRA"]
[WhiteClock "0:00:11"]
[BlackClock "0:00:42"]

1. e4 {[%clk 0:02:58]}  c5 {[%clk 0:02:59]} 2. Nf3 {[%clk 0:02:57]}  Nc6 {[%clk 0:03:00]} 3. d4 {[%clk 0:02:57]}  cxd4 {[%clk 0:03:01]} 4. Nxd4 {[%clk 0:02:58]}  e5 {[%clk 0:03:01]} 5. Nb5 {[%clk 0:02:58]}  d6 {[%clk 0:03:00]} 6. N1c3 {[%clk 0:02:59]}  a6 {[%clk 0:02:59]} 7. Na3 {[%clk 0:02:59]}  b5 {[%clk 0:02:59]} 8. Nab1 {[%clk 0:02:59]}  h6 {[%clk 0:02:57]} 9. a4 {[%clk 0:02:57]}  b4 {[%clk 0:02:56]} 10. Nd5 {[%clk 0:02:57]}  Nf6 {[%clk 0:02:56]} 11. Nxf6+ {[%clk 0:02:55]}  Qxf6 {[%clk 0:02:56]} 12. Bc4 {[%clk 0:02:55]}  Be6 {[%clk 0:02:56]} 13. Nd2 {[%clk 0:02:44]}  Be7 {[%clk 0:02:55]} 14. O-O {[%clk 0:02:44]}  O-O {[%clk 0:02:55]} 15. c3 {[%clk 0:02:40]}  bxc3 {[%clk 0:02:53]} 16. bxc3 {[%clk 0:02:40]}  Qg6 {[%clk 0:02:50]} 17. Qe2 {[%clk 0:02:35]}  Rfd8 {[%clk 0:02:38]} 18. Ba3 {[%clk 0:02:25]}  Bf8 {[%clk 0:02:31]} 19. Rfd1 {[%clk 0:02:18]}  Na5 {[%clk 0:02:13]} 20. Bxe6 {[%clk 0:02:06]}  fxe6 {[%clk 0:02:13]} 21. Nf3 {[%clk 0:02:05]}  Rac8 {[%clk 0:01:56]} 22. Qxa6 {[%clk 0:01:57]}  Nc4 {[%clk 0:01:56]} 23. Bb4 {[%clk 0:01:45]}  Qxe4 {[%clk 0:01:53]} 24. a5 {[%clk 0:01:39]}  d5 {[%clk 0:01:44]} 25. Qxe6+ {[%clk 0:01:36]}  Kh8 {[%clk 0:01:41]} 26. Bxf8 {[%clk 0:01:35]}  Rxf8 {[%clk 0:01:42]} 27. Qxd5 {[%clk 0:01:35]}  Qxd5 {[%clk 0:01:41]} 28. Rxd5 {[%clk 0:01:35]}  e4 {[%clk 0:01:42]} 29. Ne5 {[%clk 0:01:30]}  Nxe5 {[%clk 0:01:26]} 30. Rxe5 {[%clk 0:01:31]}  Rxc3 {[%clk 0:01:26]} 31. Rxe4 {[%clk 0:01:31]}  Rc2 {[%clk 0:01:26]} 32. f3 {[%clk 0:01:23]}  Rd8 {[%clk 0:01:26]} 33. a6 {[%clk 0:01:19]}  Rdd2 {[%clk 0:01:17]} 34. Rg4 {[%clk 0:01:19]}  Ra2 {[%clk 0:01:16]} 35. Rxa2 {[%clk 0:01:19]}  Rxa2 {[%clk 0:01:16]} 36. Rg6 {[%clk 0:01:20]}  Kh7 {[%clk 0:01:12]} 37. Rb6 {[%clk 0:01:20]}  Ra1+ {[%clk 0:01:13]} 38. Kf2 {[%clk 0:01:20]}  Ra2+ {[%clk 0:01:14]} 39. Kg3 {[%clk 0:01:20]}  h5 {[%clk 0:01:14]} 40. h4 {[%clk 0:01:20]}  g6 {[%clk 0:01:14]} 41. Rb7+ {[%clk 0:01:18]}  Kh6 {[%clk 0:01:13]} 42. a7 {[%clk 0:01:19]}  g5 {[%clk 0:01:13]} 43. hxg5+ {[%clk 0:01:18]}  Kxg5 {[%clk 0:01:14]} 44. f4+ {[%clk 0:01:14]}  Kf5 {[%clk 0:01:13]} 45. Rc7 {[%clk 0:01:05]}  Ra3+ {[%clk 0:01:12]} 46. Kh4 {[%clk 0:01:05]}  Kxf4 {[%clk 0:01:12]} 47. Kxh5 {[%clk 0:01:02]}  Kg3 {[%clk 0:01:12]} 48. Rg7+ {[%clk 0:01:01]}  Kf4 {[%clk 0:01:12]} 49. g4 {[%clk 0:00:58]}  Rh3+ {[%clk 0:01:10]} 50. Kg6 {[%clk 0:00:59]}  Ra3 {[%clk 0:01:10]} 51. g5 {[%clk 0:00:59]}  Kg4 {[%clk 0:01:08]} 52. Kh7 {[%clk 0:00:55]}  Rh3+ {[%clk 0:01:08]} 53. Kg8 {[%clk 0:00:56]}  Ra3 {[%clk 0:01:08]} 54. g6 {[%clk 0:00:56]}  Kg5 {[%clk 0:01:09]} 55. Kh8 {[%clk 0:00:55]}  Kh6 {[%clk 0:01:06]} 56. Kg8 {[%clk 0:00:44]}  Ra4 {[%clk 0:01:00]} 57. Kh8 {[%clk 0:00:33]}  Ra1 {[%clk 0:00:58]} 58. Kg8 {[%clk 0:00:23]}  Ra6 {[%clk 0:00:56]} 59. Kf8 {[%clk 0:00:20]}  Ra1 {[%clk 0:00:55]} 60. Re7 {[%clk 0:00:11]}  Kxg6 {[%clk 0:00:54]} 61. Ke8 {[%clk 0:00:12]}  Kf6 {[%clk 0:00:52]} 62. Kd8 {[%clk 0:00:11]}  Ra2 {[%clk 0:00:52]} 63. Rd7 {[%clk 0:00:11]}  Ke6 {[%clk 0:00:51]} 64. Kc8 {[%clk 0:00:11]}  Ra1 {[%clk 0:00:47]} 65. Rh7 {[%clk 0:00:10]}  Kd6 {[%clk 0:00:45]} 66. Kb8 {[%clk 0:00:10]}  Rb1+ {[%clk 0:00:43]} 67. Rb7 {[%clk 0:00:10]}  Rh1 {[%clk 0:00:43]} 68. a8=Q {[%clk 0:00:11]}  Rh8+ {[%clk 0:00:42]} 69. Ka7 {[%clk 0:00:11]} 1-0

[Event "December 12 Late 2023"]
[Site "https://www.chess.com"]
[Date "2023.12.12"]
[Round "1"]
[White "Golding, Alex"]
[Black "Marcziter, Dmitrii"]
[Result "0-1"]
[Board "105"]
[TimeControl "180+1"]
[WhiteFideId "427241"]
[BlackFideId "13900765"]
[WhiteElo "2636"]
[BlackElo "2307"]
[WhiteTeam "ENG"]
[BlackTeam "GER"]
[WhiteClock "0:00:00"]
[BlackClock "0:00:20"]

1. e4 {[%clk 0:02:31]}  c5 {[%clk 0:02:59]} 2. Nf3 {[%clk 0:02:31]}  a6 {[%clk 0:02:58]} 3. g3 {[%clk 0:02:31]}  Nc6 {[%clk 0:02:57]} 4. Bg2 {[%clk 0:02:32]}  g6 {[%clk 0:02:56]} 5. O-O {[%clk 0:02:32]}  Bg7 {[%clk 0:02:56]} 6. a4 {[%clk 0:02:30]}  d6 {[%clk 0:02:55]} 7. h3 {[%clk 0:02:29]}  e5 {[%clk 0:02:52]} 8. c3 {[%clk 0:02:25]}  Nge7 {[%clk 0:02:51]} 9. Na3 {[%clk 0:02:25]}  Rb8 {[%clk 0:02:50]} 10. Nc4 {[%clk 0:02:23]}  b5 {[%clk 0:02:49]} 11. axb5 {[%clk 0:02:22]}  axb5 {[%clk 0:02:49]} 12. Ne3 {[%clk 0:02:23]}  Be6 {[%clk 0:02:49]} 13. Ng5 {[%clk 0:02:17]}  Bd7 {[%clk 0:02:48]} 14. f4 {[%clk 0:02:17]}  h6 {[%clk 0:02:42]} 15. Nf3 {[%clk 0:02:17]}  O-O {[%clk 0:02:33]} 16. d3 {[%clk 0:02:12]}  Be6 {[%clk 0:02:29]} 17. Nh4 {[%clk 0:01:58]}  exf4 {[%clk 0:02:25]} 18. gxf4 {[%clk 0:01:58]}  f5 {[%clk 0:02:19]} 19. exf5 {[%clk 0:01:56]}  gxf5 {[%clk 0:02:18]} 20. Kh1 {[%clk 0:01:52]}  Kh7 {[%clk 0:02:06]} 21. Qe1 {[%clk 0:01:44]}  Qd7 {[%clk 0:01:58]} 22. Bf3 {[%clk 0:01:28]}  Bf6 {[%clk 0:01:56]} 23. Bd2 {[%clk 0:01:13]}  Rg8 {[%clk 0:01:55]} 24. Qf2 {[%clk 0:01:10]}  d5 {[%clk 0:01:40]} 25. Nhg2 {[%clk 0:00:51]}  d4 {[%clk 0:01:36]} 26. Nd1 {[%clk 0:00:45]}  Bd5 {[%clk 0:01:26]} 27. Kh2 {[%clk 0:00:39]}  Rg7 {[%clk 0:01:18]} 28. Bxd5 {[%clk 0:00:37]}  Nxd5 {[%clk 0:01:15]} 29. c4 {[%clk 0:00:34]}  bxc4 {[%clk 0:01:14]} 30. dxc4 {[%clk 0:00:34]}  Ndb4 {[%clk 0:01:11]} 31. Ne1 {[%clk 0:00:35]}  Rbg8 {[%clk 0:01:06]} 32. Bxb4 {[%clk 0:00:33]}  Nxb4 {[%clk 0:01:04]} 33. Nf3 {[%clk 0:00:27]}  Qc7 {[%clk 0:00:54]} 34. Ne5 {[%clk 0:00:07]}  Bxe5 {[%clk 0:00:49]} 35. fxe5 {[%clk 0:00:07]}  Qxe5+ {[%clk 0:00:49]} 36. Kh1 {[%clk 0:00:08]}  Nd3 {[%clk 0:00:38]} 37. Qf3 {[%clk 0:00:05]}  Rg3 {[%clk 0:00:36]} 38. Ra7+ {[%clk 0:00:02]}  Kh8 {[%clk 0:00:32]} 39. Qh5 {[%clk 0:00:01]}  Qe4+ {[%clk 0:00:27]} 40. Rf3 {[%clk 0:00:01]}  Qxf3+ {[%clk 0:00:21]} 41. Qxf3 {[%clk 0:00:01]}  Rxf3 {[%clk 0:00:21]} 42. Rh7+ {[%clk 0:00:00]}  Kxh7 {[%clk 0:00:20]} 0-1